bitfinex/quotes_SOLUSD_20240909
["timestamp","ask_amount","ask_price","bid_price","bid_amount"]
[1725865333724,45.0,128.93,128.89,9.72993613]
[1725865334107,45.0,128.93,128.88,9.72993613]
[1725865334307,45.0,128.93,128.89,20.0]
[1725865334515,45.0,128.93,128.9,9.72993613]
[1725865336723,45.0,128.93,128.89,20.0]
[1725865336921,45.0,128.93,128.88,9.72993613]
[1725865337126,45.0,128.93,128.89,20.0]
[1725865337320,45.0,128.93,128.88,9.72993613]
[1725865338719,45.0,128.93,128.89,9.72875877]
[1725865339052,6.5318,128.94,128.89,9.72875877]
[1725865339212,6.5318,128.94,128.91,9.72875877]
[1725865339529,23.1638,128.96,128.91,9.72875877]
[1725865340117,23.1638,128.96,128.89,15.6502]
[1725865340316,23.1638,128.96,128.91,9.72875877]
[1725865340724,22.5752,128.99,128.93,9.72875877]
[1725865343237,45.0,128.98,128.93,9.72875877]
[1725865351453,22.5752,128.99,128.95,9.72875877]
[1725865351636,32.84758436,129.01,128.97,9.72875877]
[1725865351842,32.84758436,129.01,128.99,9.72875877]
[1725865353552,32.84758436,129.01,128.94,15.9871]
[1725865353833,32.84758436,129.01,128.95,20.0]
[1725865354044,6.1169,129.0,128.95,20.0]
[1725865354442,45.0,128.99,128.94,20.0]
[1725865355255,45.0,128.99,128.94,29.72100378]
[1725865355906,16.5503,128.98,128.9,7.51690018]
[1725865356068,16.5503,128.98,128.91,9.72100378]
[1725865356069,45.0,128.97,128.91,9.72100378]
[1725865356367,45.0,128.97,128.9,24.31354652]
[1725865357239,45.0,128.97,128.91,20.0]
[1725865358038,45.0,128.97,128.92,24.31354652]
[1725865358230,45.0,128.97,128.93,20.0]
[1725865361852,16.5503,128.98,128.93,20.0]
[1725865362455,16.5503,128.98,128.94,24.31354652]
[1725865363680,6.1169,129.0,128.94,24.31354652]
[1725865363890,45.0,128.99,128.94,24.31354652]
[1725865364057,45.0,128.99,128.95,20.0]
[1725865372390,6.1169,129.0,128.96,24.31354652]
[1725865372700,28.01290702,129.03,128.97,20.0]
[1725865374619,22.942962,129.04,128.97,20.0]
[1725865374620,45.0,129.02,128.97,20.0]
[1725865374791,45.0,129.03,128.97,20.0]
[1725865375190,45.0,129.03,128.98,1.55044961]
[1725865375391,45.0,129.03,128.97,20.0]
[1725865376116,45.0,129.03,128.97,29.71666402]
[1725865380689,6.870862,129.04,128.97,36.0519]
[1725865380995,6.870862,129.04,128.99,9.71666402]
[1725865382024,45.0,129.03,128.99,9.71666402]
[1725865382433,45.0,129.03,128.97,45.76856402]
[1725865384502,45.0,129.03,128.97,20.0]
[1725865384726,45.0,129.03,128.96,9.71666402]
[1725865385026,15.2201,129.02,128.94,15.7092]
[1725865385234,45.0,129.01,128.93,9.71666402]
[1725865385416,45.0,129.01,128.92,9.71666402]
[1725865385608,26.3285,129.0,128.92,9.71666402]
[1725865385945,69.38543,128.99,128.9,9.71666402]
[1725865386128,15.8792,128.98,128.9,9.71666402]
[1725865386431,45.0,128.97,128.9,9.71666402]
[1725865387335,45.0,128.97,128.91,20.0]
[1725865388342,45.0,128.97,128.9,20.0]
[1725865390838,6.3965,128.96,128.9,20.0]
[1725865391056,45.0,128.95,128.9,20.0]
[1725865391341,45.0,128.95,128.89,20.0]
[1725865391510,45.0,128.95,128.88,20.0]
[1725865396535,16.3689,128.94,128.88,20.0]
[1725865396830,45.0,128.93,128.86,44.31605478]
[1725865397038,45.0,128.93,128.86,45.87128981]
[1725865397929,45.0,128.93,128.86,47.42289308]
[1725865398434,45.0,128.93,128.88,24.31605478]
[1725865398638,45.0,128.93,128.89,20.0]
[1725865401338,16.3689,128.94,128.9,1.55143794]
[1725865401538,16.3689,128.94,128.9,24.31605478]
[1725865402413,6.3965,128.96,128.9,24.31605478]
[1725865402637,6.3965,128.96,128.92,24.31605478]
[1725865404049,45.0,128.95,128.92,24.31605478]
[1725865404846,45.0,128.95,128.89,20.0]
[1725865406853,45.0,128.95,128.9,24.31605478]
[1725865417156,45.0,128.95,128.89,20.0]
[1725865422868,6.3965,128.96,128.93,24.31605478]
[1725865423159,6.3965,128.96,128.94,20.0]
[1725865424455,15.3025,128.98,128.94,20.0]
[1725865424758,6.6247,128.99,128.97,24.31605478]
[1725865424946,16.3211,129.01,128.98,20.0]
[1725865425475,38.42420579,129.03,128.98,20.0]
[1725865427669,45.0,129.02,128.98,20.0]
[1725865429671,38.42420579,129.03,128.98,20.0]
[1725865431375,6.6247,129.03,128.98,20.0]
[1725865431869,45.0,129.02,128.98,20.0]
[1725865432874,45.0,129.02,128.96,20.0]
[1725865433447,45.0,129.02,128.95,20.0]
[1725865434049,45.0,129.02,128.93,24.31605478]
[1725865434245,45.0,129.02,128.9,22.72130018]
[1725865434246,45.0,129.02,128.95,24.31605478]
[1725865435382,45.0,129.02,128.96,20.0]
[1725865438874,6.6247,129.03,128.96,20.0]
[1725865439573,6.6247,129.03,128.97,24.31605478]
[1725865439955,6.6247,129.03,128.98,20.0]
[1725865440872,45.0,129.02,128.98,20.0]
[1725865442956,45.0,129.02,128.96,20.0]
[1725865448180,45.0,129.02,128.94,20.0]
[1725865450090,45.0,129.02,128.95,24.31605478]
[1725865450267,45.0,129.02,128.96,20.0]
[1725865451571,6.6247,129.03,128.96,20.0]
[1725865453184,6.6247,129.03,128.97,24.31605478]
[1725865453357,6.6247,129.03,128.98,20.0]
[1725865454773,45.0,129.02,128.98,20.0]
[1725865455174,6.6247,129.03,128.98,20.0]
[1725865456493,6.6247,129.03,128.99,24.31605478]
[1725865456702,17.234962,129.04,129.0,20.0]
[1725865457191,0.831162,129.04,129.0,20.0]
[1725865464191,0.831162,129.04,128.98,20.0]
[1725865466071,0.831162,129.04,128.99,9.71398669]
[1725865466272,0.831162,129.04,129.0,20.0]
[1725865469880,0.831162,129.04,128.97,9.71398669]
[1725865470186,0.831162,129.04,128.98,20.0]
[1725865472182,0.831162,129.04,128.99,9.71398669]
[1725865472486,0.831162,129.04,129.0,20.0]
[1725865472690,0.831162,129.04,128.98,20.0]
[1725865472991,0.831162,129.04,128.99,9.71398669]
[1725865473288,0.831162,129.04,129.0,20.0]
[1725865476483,0.831162,129.04,128.97,9.71398669]
[1725865476791,0.831162,129.04,128.98,20.0]
[1725865476991,0.831162,129.04,128.96,20.0]
[1725865478788,0.831162,129.04,128.97,9.71398669]
[1725865478994,0.831162,129.04,128.98,20.0]
[1725865479174,0.831162,129.04,128.99,9.71398669]
[1725865480181,0.831162,129.04,128.98,20.0]
[1725865485891,0.831162,129.04,128.96,20.0]
[1725865490431,21.4093,129.03,128.96,20.0]
[1725865490634,45.0,129.02,128.96,20.0]
[1725865500124,45.0,129.02,128.97,9.71639484]
[1725865500449,45.0,129.02,128.98,20.0]
[1725865502541,23.1165,129.01,128.92,1.34991883]
[1725865502743,23.1165,129.01,128.9,46.46079401]
[1725865502744,15.3593,128.99,128.9,9.71639484]
[1725865502952,6.5469,128.97,128.9,9.71639484]
[1725865503325,45.0,128.96,128.9,9.71639484]
[1725865503728,6.5469,128.97,128.94,9.71639484]
[1725865504042,15.3593,128.99,128.96,9.71639484]
[1725865504227,15.3593,128.99,128.95,20.0]
[1725865505129,15.3593,128.99,128.93,20.0]
[1725865505449,15.936,128.96,128.88,9.71639484]
[1725865505628,45.0,128.95,128.88,9.71639484]
[1725865505832,45.0,128.95,128.9,9.71639484]
[1725865506946,45.0,128.95,128.91,20.0]
[1725865508865,15.936,128.96,128.92,9.71639484]
[1725865509066,6.527,128.97,128.94,9.71639484]
[1725865511178,6.527,128.97,128.95,20.0]
[1725865512353,15.5339,128.99,128.95,20.0]
[1725865514272,6.2004,129.0,128.96,9.71639484]
[1725865514573,45.0,128.99,128.97,20.0]
[1725865515164,16.6548,129.02,128.98,9.71639484]
[1725865516565,45.0,129.01,128.97,20.0]
[1725865518203,45.0,129.01,128.95,20.0]
[1725865518363,45.0,129.01,128.93,9.71639484]
[1725865519985,45.0,129.01,128.94,20.0]
[1725865521300,6.049,129.0,128.94,20.0]
[1725865521504,6.049,129.0,128.91,16.59765056]
[1725865521505,60.8731,128.99,128.91,9.71639484]
[1725865522677,60.8731,128.99,128.92,20.0]
[1725865523198,60.8731,128.99,128.93,9.71639484]
[1725865525185,60.8731,128.99,128.92,20.0]
[1725865528703,60.8731,128.99,128.93,9.71639484]
[1725865530673,15.8731,128.99,128.93,9.71639484]
[1725865530873,15.8731,128.99,128.95,9.71639484]
[1725865532204,45.0,128.98,128.95,9.71639484]
[1725865533274,45.0,128.98,128.93,9.71639484]
[1725865533605,45.0,128.98,128.94,20.0]
[1725865537318,6.2239,128.97,128.91,1.5549945]
[1725865537512,45.0,128.96,128.9,25.58949484]
[1725865538013,45.0,128.96,128.9,9.71639484]
[1725865539483,45.0,128.96,128.91,20.0]
[1725865541413,45.0,128.96,128.92,9.71639484]
[1725865541579,45.0,128.96,128.93,20.0]
[1725865548107,6.2239,128.97,128.94,9.71639484]
[1725865548286,15.8731,128.99,128.96,9.71639484]
[1725865550024,15.8731,128.99,128.93,20.0]
[1725865550201,45.0,128.98,128.94,9.71639484]
[1725865550399,45.0,128.98,128.9,1.55467259]
[1725865550597,45.0,128.98,128.91,11.27106743]
[1725865550801,45.0,128.98,128.92,20.0]
[1725865551005,6.5285,128.97,128.92,20.0]
[1725865551214,45.0,128.96,128.92,20.0]
[1725865556354,41.0,128.96,128.92,20.0]
[1725865558347,41.0,128.96,128.93,9.71639484]
[1725865558514,6.5285,128.97,128.93,9.71639484]
[1725865560735,15.8731,128.99,128.92,20.0]
[1725865560736,15.8731,128.99,128.95,9.71639484]
[1725865560950,15.8731,128.99,128.97,9.71639484]
[1725865561743,6.5311,129.01,128.97,9.71639484]
[1725865563319,45.0,129.0,128.97,9.71639484]
[1725865564050,45.0,129.0,128.95,9.71639484]
[1725865564237,45.0,129.0,128.96,20.0]
[1725865565116,45.0,129.0,128.89,16.6089]
[1725865565318,16.585,128.99,128.93,9.71639484]
[1725865565547,16.585,128.99,128.89,16.6089]
[1725865565548,6.1359,128.97,128.91,9.71639484]
[1725865566043,45.0,128.96,128.91,9.71639484]
[1725865567555,45.0,128.96,128.92,20.0]
[1725865567845,6.1359,128.97,128.95,9.71639484]
[1725865569024,6.1359,128.97,128.92,20.0]
[1725865569225,45.0,128.96,128.94,9.71639484]
[1725865572528,6.1359,128.97,128.94,9.71639484]
[1725865574931,16.585,128.99,128.94,9.71639484]
[1725865575134,45.0,128.98,128.94,9.71639484]
[1725865575438,6.1188,129.0,128.96,9.71639484]
[1725865575850,6.1188,129.0,128.94,9.71639484]
[1725865576245,16.1176,128.99,128.94,9.71639484]
[1725865576749,45.0,128.98,128.94,9.71639484]
[1725865577531,16.1176,128.99,128.94,9.71639484]
[1725865577747,16.1176,128.99,128.96,9.71639484]
[1725865578053,16.1176,128.99,128.92,9.71639484]
[1725865578268,16.1176,128.99,128.93,20.0]
[1725865578936,45.0,128.98,128.93,20.0]
[1725865580226,45.0,128.98,128.92,9.71639484]
[1725865580631,6.4334,128.97,128.88,16.1176]
[1725865580853,16.2857,128.95,128.88,25.83399484]
[1725865581055,16.2857,128.95,128.88,9.71639484]
[1725865581056,45.0,128.94,128.88,9.71639484]
[1725865582152,45.0,128.94,128.89,20.0]
[1725865584248,6.4894,128.93,128.85,16.5291]
[1725865584571,15.2456,128.91,128.83,1.35151172]
[1725865584739,45.0,128.9,128.84,9.71639484]
[1725865585452,45.0,128.9,128.86,9.71639484]
[1725865586167,45.0,128.9,128.86,24.32927049]
[1725865586637,45.0,128.9,128.84,24.32927049]
[1725865586840,45.0,128.9,128.85,20.0]
[1725865587850,6.1783,128.89,128.82,24.32927049]
[1725865588166,6.1783,128.89,128.83,20.0]
[1725865588374,45.0,128.88,128.83,20.0]
[1725865591672,45.0,128.88,128.8,24.32927049]
[1725865592066,45.0,128.88,128.81,20.0]
[1725865595377,6.1783,128.89,128.81,20.0]
[1725865595965,15.6689,128.88,128.81,20.0]
[1725865596959,45.0,128.87,128.81,20.0]
[1725865599469,45.0,128.87,128.78,39.34207049]
[1725865599666,6.0051,128.86,128.79,20.0]
[1725865599864,45.0,128.85,128.79,20.0]
[1725865601287,15.2981,128.84,128.79,20.0]
[1725865601474,45.0,128.83,128.79,20.0]
[1725865612293,45.0,128.83,128.78,9.74575293]
[1725865612494,45.0,128.83,128.79,20.0]
[1725865614995,45.0,128.83,128.78,9.74575293]
[1725865615182,45.0,128.83,128.79,20.0]
[1725865616397,45.0,128.83,128.78,9.74575293]
[1725865617190,6.5201,128.82,128.75,15.92]
[1725865617410,45.0,128.81,128.76,29.74575293]
[1725865618372,45.0,128.81,128.73,7.51666201]
[1725865618579,15.1762,128.8,128.69,23.67716201]
[1725865618781,45.0,128.79,128.76,9.74575293]
[1725865626100,15.1762,128.8,128.78,9.74575293]
[1725865626504,15.1762,128.8,128.76,9.74575293]
[1725865627417,45.0,128.79,128.76,9.74575293]
[1725865627810,45.0,128.79,128.7,1.34859901]
[1725865628030,45.0,128.79,128.74,9.74575293]
[1725865628309,6.6568,128.78,128.72,9.74575293]
[1725865628510,45.0,128.77,128.7,20.0]
[1725865628715,15.4364,128.76,128.7,9.74575293]
[1725865629014,45.0,128.75,128.7,9.74575293]
[1725865629215,45.0,128.75,128.66,24.12606201]
[1725865629419,6.3355,128.74,128.7,9.74575293]
[1725865629930,45.0,128.73,128.7,9.74575293]
[1725865634800,45.0,128.73,128.66,24.12606201]
[1725865635126,45.0,128.73,128.7,9.74575293]
[1725865635625,45.0,128.73,128.68,9.74575293]
[1725865635796,45.0,128.73,128.69,20.0]
[1725865639624,45.0,128.73,128.68,9.74575293]
[1725865639625,45.0,128.73,128.66,9.74575293]
[1725865639831,15.5055,128.72,128.67,20.0]
[1725865640125,45.0,128.71,128.66,9.74575293]
[1725865641308,6.3087,128.7,128.65,9.74575293]
[1725865641520,45.0,128.69,128.65,9.74575293]
[1725865642023,45.0,128.69,128.66,20.0]
[1725865642720,45.0,128.69,128.65,9.74575293]
[1725865643297,45.0,128.69,128.6,17.2682293]
[1725865643516,45.0,128.69,128.64,9.74575293]
[1725865643831,45.0,128.69,128.65,20.0]
[1725865644934,6.3087,128.7,128.66,9.74575293]
[1725865646407,45.0,128.69,128.66,9.74575293]
[1725865647228,45.0,128.69,128.65,20.0]
[1725865647523,45.0,128.69,128.65,9.74575293]
[1725865661713,6.3087,128.7,128.67,9.74575293]
[1725865661916,15.5055,128.72,128.69,9.74575293]
[1725865664323,23.65452851,128.73,128.71,9.74575293]
[1725865668234,23.65452851,128.73,128.69,9.74575293]
[1725865668417,45.0,128.72,128.69,9.74575293]
[1725865679452,23.65452851,128.73,128.69,9.74575293]
[1725865679647,45.0,128.72,128.69,9.74575293]
[1725865685861,23.65452851,128.73,128.69,9.74575293]
[1725865687168,45.0,128.72,128.69,9.74575293]
[1725865688465,17.41662851,128.73,128.71,9.74575293]
[1725865688665,78.327362,129.04,128.71,9.74575293]
[1725865688666,15.7593,128.78,128.71,9.74575293]
[1725865688871,15.7593,128.78,128.74,9.74575293]
[1725865693193,6.4402,128.79,128.76,9.74575293]
[1725865693380,6.6335,128.82,128.73,15.8607]
[1725865693544,20.0,128.81,128.76,9.74575293]
[1725865693861,6.6335,128.82,128.76,9.74575293]
[1725865695154,20.0,128.81,128.76,9.74575293]
[1725865696072,20.0,128.81,128.74,29.74575293]
[1725865696651,7.764,128.8,128.7,16.3115]
[1725865696862,20.0,128.79,128.72,9.74575293]
[1725865698872,36.5917,128.79,128.72,9.74575293]
[1725865699753,6.6335,128.82,128.76,9.74575293]
[1725865699983,20.0,128.81,128.76,9.74575293]
[1725865700464,20.0,128.81,128.7,16.3115]
[1725865700666,27.7634,128.81,128.73,9.74575293]
[1725865700858,15.4194,128.8,128.73,9.74575293]
[1725865701059,26.1644,128.79,128.73,9.74575293]
[1725865710472,33.9289,128.79,128.73,9.74575293]
[1725865710674,15.1083,128.77,128.7,9.74575293]
[1725865711183,6.3636,128.76,128.7,9.74575293]
[1725865712086,27.7672,128.75,128.67,1.55737316]
[1725865712291,20.0,128.75,128.67,9.74575293]
[1725865713683,20.0,128.75,128.69,9.74575293]
[1725865715171,20.0,128.75,128.68,20.0]
[1725865719466,15.0249,128.74,128.68,20.0]
[1725865719800,15.0249,128.74,128.66,9.74575293]
[1725865719980,15.0249,128.74,128.67,20.0]
[1725865723575,6.631,128.73,128.67,20.0]
[1725865739401,6.631,128.73,128.68,9.74575293]
[1725865740407,6.631,128.73,128.7,9.74575293]
[1725865740702,6.631,128.73,128.69,9.74575293]
[1725865742085,6.631,128.73,128.67,20.0]
[1725865742302,6.631,128.73,128.67,9.74575293]
[1725865742535,6.631,128.73,128.68,20.0]
[1725865742712,6.631,128.73,128.67,9.74575293]
[1725865749714,20.0,128.72,128.65,29.74575293]
[1725865750187,20.0,128.72,128.67,9.74575293]
[1725865750803,6.631,128.73,128.67,9.74575293]
[1725865751203,20.0,128.72,128.67,9.74575293]
[1725865752417,20.0,128.72,128.65,29.74575293]
[1725865753927,20.0,128.72,128.65,20.0]
[1725865754093,20.0,128.72,128.65,9.74575293]
[1725865755094,20.0,128.72,128.63,20.0]
[1725865755095,7.7709,128.69,128.63,20.0]
[1725865755325,6.3573,128.7,128.61,9.74575293]
[1725865755494,6.3573,128.7,128.6,0.831162]
[1725865755495,26.3573,128.7,128.63,9.74575293]
[1725865758319,34.1273,128.7,128.6,0.831162]
[1725865758542,34.1273,128.7,128.62,9.74575293]
[1725865764950,26.3573,128.7,128.64,9.74575293]
[1725865765119,26.3573,128.7,128.66,9.74575293]
[1725865766120,26.3573,128.7,128.65,9.74575293]
[1725865766734,6.3573,128.7,128.67,9.74575293]
[1725865771942,6.3573,128.7,128.62,15.1451]
[1725865772112,6.3573,128.7,128.67,9.74575293]
[1725865775051,6.3573,128.7,128.63,20.0]
[1725865775247,6.3573,128.7,128.67,9.74575293]
[1725865777120,6.3573,128.7,128.63,20.0]
[1725865777320,6.3573,128.7,128.67,9.74575293]
[1725865785932,6.3573,128.7,128.69,9.74575293]
[1725865786133,17.19754213,128.74,128.69,29.74575293]
[1725865786435,6.2653,128.78,128.73,9.74575293]
[1725865786641,16.1883,128.8,128.77,9.74575293]
[1725865786850,6.2557,128.82,128.79,9.74575293]
[1725865792659,6.2557,128.82,128.74,20.0]
[1725865792853,6.2557,128.82,128.76,9.74575293]
[1725865793234,6.2557,128.82,128.78,9.74575293]
[1725865800267,6.2576,128.86,128.8,9.74575293]
[1725865800446,6.2576,128.86,128.82,9.74575293]
[1725865800857,6.2576,128.86,128.81,9.74575293]
[1725865801068,6.2576,128.86,128.74,20.0]
[1725865801363,6.2576,128.86,128.79,9.74575293]
[1725865801541,20.0,128.85,128.79,9.74575293]
[1725865802350,20.0,128.85,128.78,9.74575293]
[1725865802670,22.2899,128.84,128.77,9.74575293]
[1725865803961,22.2899,128.84,128.73,15.6475]
[1725865804150,22.2899,128.84,128.72,8.19133443]
[1725865804151,7.763,128.82,128.75,9.74575293]
[1725865804360,23.6706,128.8,128.7,15.9432]
[1725865804578,20.0,128.79,128.71,9.74575293]
[1725865806664,20.0,128.79,128.72,20.0]
[1725865807189,20.0,128.79,128.73,9.74575293]
[1725865807474,20.0,128.79,128.72,20.0]
[1725865807651,20.0,128.79,128.72,9.74575293]
[1725865808351,20.0,128.79,128.74,9.74575293]
[1725865811981,15.9065,128.8,128.74,9.74575293]
[1725865812261,15.9065,128.8,128.76,9.74575293]
[1725865814267,6.3558,128.81,128.78,9.74575293]
[1725865816784,16.3499,128.83,128.78,9.74575293]
[1725865823583,16.3499,128.83,128.75,15.261]
[1725865823795,16.3499,128.83,128.78,9.74575293]
[1725865826290,16.3499,128.83,128.75,15.261]
[1725865826513,16.3499,128.83,128.78,9.74575293]
[1725865832479,16.3499,128.83,128.75,1.55699207]
[1725865832676,20.0,128.82,128.74,9.74575293]
[1725865833096,6.4615,128.81,128.74,9.74575293]
[1725865833973,20.0,128.8,128.74,9.74575293]
[1725865836013,20.0,128.8,128.76,9.74575293]
[1725865837806,6.4615,128.81,128.76,9.74575293]
[1725865840001,6.4615,128.81,128.73,20.0]
[1725865840205,6.4615,128.81,128.74,9.74575293]
[1725865841806,14.2251,128.81,128.73,20.0]
[1725865842004,6.4615,128.81,128.73,9.74575293]
[1725865842305,20.0,128.8,128.73,9.74575293]
[1725865846112,16.3505,128.79,128.73,9.74575293]
[1725865848315,16.3505,128.79,128.7,21.55729483]
[1725865848493,20.0,128.78,128.71,9.74575293]
[1725865849186,6.0752,128.77,128.71,9.74575293]
[1725865850516,6.0752,128.77,128.73,9.74575293]
[1725865853294,6.0752,128.77,128.75,9.74575293]
[1725865854918,16.3505,128.79,128.75,9.74575293]
[1725865855696,6.0166,128.81,128.75,9.74575293]
[1725865855921,6.0166,128.81,128.77,9.74575293]
[1725865857512,6.0166,128.81,128.75,9.74575293]
[1725865859024,6.0166,128.81,128.77,9.74575293]
[1725865859702,6.0166,128.81,128.75,9.74575293]
[1725865862295,6.0166,128.81,128.77,9.74575293]
[1725865865314,6.0166,128.81,128.79,9.74575293]
[1725865869808,6.6326,128.85,128.79,9.74575293]
[1725865870009,6.6326,128.85,128.81,9.74575293]
[1725865871010,6.6326,128.85,128.83,9.74575293]
[1725865871223,21.0331,128.89,128.83,9.74575293]
[1725865871533,21.0331,128.89,128.85,9.74575293]
[1725865871737,21.0331,128.89,128.83,9.74575293]
[1725865871914,21.0331,128.89,128.77,15.1297]
[1725865871915,21.0331,128.89,128.81,9.74575293]
[1725865872724,20.0,128.88,128.81,9.74575293]
[1725865873427,21.0331,128.89,128.85,9.74575293]
[1725865874326,21.0331,128.89,128.83,9.74575293]
[1725865881542,21.0331,128.89,128.82,9.74575293]
[1725865883537,6.595,128.88,128.79,9.74575293]
[1725865883733,15.9983,128.87,128.79,9.74575293]
[1725865883947,27.7605,128.86,128.79,9.74575293]
[1725865884133,14.3134,128.85,128.79,9.74575293]
[1725865884332,14.3134,128.85,128.73,16.3485]
[1725865884333,20.0,128.84,128.77,9.74575293]
[1725865885525,20.0,128.84,128.72,1.55677883]
[1725865885526,7.7632,128.82,128.72,1.55677883]
[1725865885728,20.0,128.81,128.72,17.90527883]
[1725865885941,15.2079,128.79,128.72,27.65103176]
[1725865886351,15.2079,128.79,128.72,11.30253176]
[1725865888220,15.2079,128.79,128.72,1.55677883]
[1725865888638,15.2079,128.79,128.71,20.0]
[1725865894451,15.2079,128.79,128.72,1.55344075]
[1725865894631,15.2079,128.79,128.71,20.0]
[1725865894836,22.9729,128.79,128.71,20.0]
[1725865895025,20.0,128.78,128.71,20.0]
[1725865895952,6.3615,128.77,128.71,20.0]
[1725865902333,6.3615,128.77,128.68,24.38838521]
[1725865902662,6.3615,128.77,128.69,20.0]
[1725865904549,15.8292,128.76,128.69,20.0]
[1725865904857,15.8292,128.76,128.66,40.47458521]
[1725865904858,35.8292,128.76,128.67,20.0]
[1725865907857,6.3214,128.75,128.67,20.0]
[1725865908161,20.0,128.74,128.67,29.76207993]
[1725865909446,6.3214,128.75,128.67,29.76207993]
[1725865909757,20.0,128.74,128.67,29.76207993]
[1725865926377,6.4308,128.72,128.67,29.76207993]
[1725865928361,6.4308,128.72,128.68,1.55403739]
[1725865928769,6.4308,128.72,128.69,9.76207993]
[1725865932266,6.4308,128.72,128.67,9.76207993]
[1725865932974,6.4308,128.72,128.65,9.76207993]
[1725865933281,6.4308,128.72,128.63,9.76207993]
[1725865933479,20.0,128.71,128.63,9.76207993]
[1725865933656,15.433,128.7,128.63,9.76207993]
[1725865933861,6.5375,128.69,128.63,9.76207993]
[1725865934584,6.5375,128.69,128.64,20.0]
[1725865939183,6.5375,128.69,128.6,25.67399643]
[1725865939365,6.5375,128.69,128.63,9.76207993]
[1725865939568,6.5375,128.69,128.64,20.0]
[1725865945796,6.5375,128.69,128.64,21.55815258]
[1725865947166,6.5375,128.69,128.65,1.55815258]
[1725865947362,6.5375,128.69,128.64,21.55815258]
[1725865947671,6.5375,128.69,128.65,1.55810594]
[1725865948583,6.5375,128.69,128.65,11.32018587]
[1725865950169,6.5375,128.69,128.67,9.76207993]
[1725865950569,15.433,128.7,128.67,9.76207993]
[1725865950894,6.5879,128.72,128.67,9.76207993]
[1725865951789,6.5879,128.72,128.67,1.55806044]
[1725865953877,6.5879,128.72,128.66,9.76207993]
[1725865954498,6.5879,128.72,128.67,1.5579434]
[1725865954872,6.5879,128.72,128.67,12.87796703]
[1725865955093,6.5879,128.72,128.67,11.32002333]
[1725865955498,6.5879,128.72,128.67,3.1158871]
[1725865955678,6.5879,128.72,128.67,1.5579434]
[1725865955978,6.5879,128.72,128.67,3.1158871]
[1725865957596,6.5879,128.72,128.67,1.5579434]
[1725865957796,6.5879,128.72,128.67,3.1158871]
[1725865958674,6.5879,128.72,128.67,1.5579437]
[1725865962494,6.5879,128.72,128.68,9.76207993]
[1725865965692,6.5879,128.72,128.68,11.32002311]
[1725865966799,15.2202,128.73,128.7,9.76207993]
[1725865967381,6.2582,128.72,128.68,1.55794318]
[1725865967586,15.2202,128.73,128.67,1.55794318]
[1725865967587,6.2582,128.69,128.67,1.55794318]
[1725865967798,20.0,128.68,128.67,1.55794318]
[1725865968895,20.0,128.68,128.64,1.55794318]
[1725865970211,6.2582,128.69,128.64,1.55794318]
[1725865970907,6.2582,128.69,128.63,9.76207993]
[1725865971095,6.2582,128.69,128.64,1.5583217]
[1725865978195,6.2582,128.69,128.65,1.5583217]
[1725865978395,6.2582,128.69,128.64,1.5583217]
[1725865978591,6.2582,128.69,128.61,31.32040163]
[1725865978890,6.2582,128.69,128.62,1.5583217]
[1725865979399,6.2582,128.69,128.63,1.5583217]
[1725865979599,6.2582,128.69,128.64,1.5583217]
[1725865979806,6.2582,128.69,128.62,1.5583217]
[1725865979993,6.2582,128.69,128.63,1.5583217]
[1725865980194,6.2582,128.69,128.61,29.76207993]